[Event "21st Open Gran Hotel Bali-A 2024"]
[Site "Benidorm"]
[Date "2024.11.30"]
[Round "3.8"]
[White "Davtyan, David Arm."]
[Black "Cruz Lledo, Pablo"]
[Result "1-0"]
[ECO "D15"]
[WhiteElo "2293"]
[BlackElo "2411"]
[Annotator "TA"]
[PlyCount "79"]
[EventDate "2024.11.26"]
[EventType "swiss"]
[EventCountry "ESP"]
[SourceTitle "playchess.com"]
[Source "ChessBase"]
[SourceQuality "1"]
[TimeControl "5400+30"]

{[%evp 15,79,27,25,25,31,22,57,37,43,0,0,0,0,0,0,7,8,10,35,35,43,-25,0,0,0,0,0,-59,-85,-61,277,256,256,250,185,34,122,27,20,0,0,0,9,16,11,18,185,178,469,434,481,458,450,429,548,541,29992,712,1770,1608,29993,29994,29995,29996,29997,29998]} 1. d4 {[%emt 0:00:19]} d5 {[%emt 0:01:12]} 2. Nf3 {[%emt 0:00:37]} Nf6 {[%emt 0:00:08]} 3. c4 {[%emt 0:00:12]} c6 {[%emt 0:00:13]} 4. Nc3 {[%emt 0:00:07]} a6 {[%emt 0:00:07]} 5. c5 {[%emt 0:00:25]} g6 {[%emt 0:02:02]} 6. h3 {[%emt 0:11:32]} Bg7 {[%emt 0:03:29]} 7. Bf4 {[%emt 0:00:49]} O-O {[%emt 0:00:06]} 8. e3 {[%emt 0:00:15]} Nbd7 {[%emt 1:27:13]} 9. Bd3 {[%emt 0:05:31]} Ne8 {[%emt 0:00:00]} 10. O-O {[%emt 0:14:03]} Nc7 {[%emt 0:00:00][%cal Oe7e5]} 11. b4 {[%emt 0:05:35]} Re8 {[%emt 0:00:00][%cal Bf8e8,Be8e5,Be5h5,Bh5h4][%mdl 32]} 12. Qb3 {[%emt 0:07:32]} e5 {[%emt 0:00:00]} 13. dxe5 {[%emt 0:01:47]} Nxe5 {[%emt 0:00:00]} 14. Nxe5 {[%emt 0:01:13]} Bxe5 {[%emt 0:00:00]} 15. Bxe5 {[%emt 0:00:37]} Rxe5 {[%emt 0:00:00]} 16. Ne2 {[%emt 0:01:45]} Ne6 {[%emt 0:00:00]} 17. Qc3 {[%emt 0:02:16]} Rh5 {[%emt 0:00:00]} 18. a4 {[%emt 0:01:52]} ({White should play} 18. f4 $14) 18... Qe7 {[%emt 0:00:00]} 19. Ng3 {[%emt 0:06:17]} Rh4 {[%emt 0:00:00][%cal Oa6a5]} 20. f4 {[%emt 0:00:08]} a5 $1 {[%emt 0:00:00]} 21. Rac1 {[%emt 0:05:16]} (21. bxa5 $11 Nxc5 (21... Qxc5 22. Qe5 $11) 22. Kh2) 21... axb4 $15 {[%emt 0:00:00]} 22. Qxb4 {[%emt 0:00:02] [#]} Nxf4 $2 {[%emt 0:00:00][%mdl 8192]} 23. exf4 $18 {[%emt 0:00:15]} Qe3+ {[%emt 0:00:00]} 24. Kh2 {[%emt 0:00:04]} Qxd3 {[%emt 0:00:00]} 25. Rf3 $2 {[%emt 0:00:51]} (25. Rce1 $1 $18 {[%cal Re1e8]}) 25... Qa6 {[%emt 0:00:00] [#]} ({Black should try} 25... Rxh3+ $1 $14 26. Kg1 Qxf3 (26... Rxg3 27. Rxd3 Rxd3 28. Re1 $16) 27. gxf3 Rxg3+ 28. Kf2 Rh3) 26. Qd4 {[%emt 0:02:10] White is more active.} (26. Qe1 $1 $16 {[%cal Re1e8] Hoping for Qe8+.} Bg4 (26... Qxa4 $2 27. Qe8+ Kg7 28. Qe5+ Kg8 29. Qg5 $18) 27. Re3) 26... Qa5 $1 $11 {[%emt 0:00:00]} (26... Qxa4 $6 27. Qf6 Rh6 28. Rf2 $18) 27. Qf6 {[%emt 0:07:53]} Rxh3+ {[%emt 0:00:00]} 28. Kg1 $1 {[%emt 0:00:13]} Bg4 {[%emt 0:00:00]} 29. Re3 $40 {[%emt 0:01:43][%mdl 128] Black needs to defend precisely.} Rxg3 $1 {[%emt 0:00:00]} 30. Rxg3 {[%emt 0:00:09]} Qd2 $2 {[%emt 0:00:00]} (30... h5 $11 {and Black has nothing to worry.}) 31. Rb1 $18 {[%emt 0:02:46]} Be6 $2 {[%emt 0:00:00]} (31... Qc2 32. Rxb7 Be6) 32. f5 {[%emt 0:02:29]} ({Weaker is} 32. Rxb7 Qd1+ 33. Kh2 d4 $16) 32... Qc2 {[%emt 0:00:00] [#]} 33. Rf1 $1 {[%emt 0:00:32]} ({Not} 33. Rxb7 Qc1+ 34. Kh2 Qh6+ 35. Rh3 (35. Kg1 Qc1+ 36. Kh2 Qh6+ 37. Kg1 Qc1+ $11) 35... Qf4+ 36. Rg3 Qh6+ 37. Kg1 Qc1+ 38. Kh2 Qh6+ $11) 33... Qxc5+ {[%emt 0:03:19]} 34. Kh2 {[%emt 0:00:17]} Bxf5 {[%emt 0:00:33]} 35. Rxf5 {[%emt 0:00:34]} Rf8 {[%emt 0:00:40]} 36. Rf4 {[%emt 0:01:48]} (36. Rh5 $142 Qc1 37. Rgh3 Qf1 38. Qxf1 f5 39. Rxh7 Rf7 40. Rh8+ Kg7 41. Qa1+ d4 42. Qxd4+ Rf6 43. R3h7#) 36... Qc2 {[%emt 0:02:12]} 37. Rh4 {[%emt 0:01:19][%cal Oh4h7] Threatening mate with Rxh7!.} Qd2 {[%emt 0:01:06]} 38. Rgh3 {[%emt 0:00:17]} h5 {[%emt 0:02:26] [#]} 39. Rxh5 $1 {[%emt 0:00:12]} gxh5 {[%emt 0:00:22]} (39... Qf4+ 40. Qxf4) 40. Rg3+ {[%emt 0:00:04]} 1-0

[Event "21st Open Gran Hotel Bali-A 2024"]
[Site "Benidorm"]
[Date "2024.11.30"]
[Round "3.9"]
[White "Domingo Nunez, Ruben"]
[Black "Ammar, Sedrani"]
[Result "1-0"]
[ECO "A49"]
[WhiteElo "2409"]
[BlackElo "2271"]
[Annotator "TA"]
[PlyCount "157"]
[EventDate "2024.11.26"]
[EventType "swiss"]
[EventCountry "ESP"]
[SourceTitle "playchess.com"]
[Source "ChessBase"]
[SourceQuality "1"]
[TimeControl "5400+30"]

{[%evp 49,157,0,42,41,48,53,92,97,183,184,185,183,183,183,183,183,268,248,258,252,283,283,299,299,305,268,271,281,312,266,263,262,276,87,225,225,275,283,283,283,283,275,283,266,298,292,292,288,274,216,213,204,233,135,162,162,200,200,200,200,200,0,200,200,200,200,200,200,200,200,200,200,200,200,200,200,200,200,466,445,602,588,573,531,821,764,733,676,1054,641,976,912,6016,6005,2352,2093,4134,4132,1701,0,1841,1527,1634,1688,1720,1463,1674,1570,1443,1209]} 1. Nf3 {[%emt 0:07:24]} Nf6 {[%emt 0:01:04]} 2. g3 {[%emt 0:00:22]} g6 {[%emt 0:00:11]} 3. b3 {[%emt 0:00:39]} Bg7 {[%emt 0:00:08]} 4. Bb2 {[%emt 0:00:18]} O-O {[%emt 0:02:44]} 5. Bg2 {[%emt 0:01:15]} d6 {[%emt 0:03:11]} 6. d4 {[%emt 0:00:09]} Nbd7 {[%emt 0:09:01]} 7. O-O {[%emt 0:00:28]} a5 {[%emt 0:04:56] Recently 7...c6 got a lot of attention. A49: 1 d4 Nf6 2 Nf3 g6 3 g3: Anti-King's Indian systems.} 8. a4 {[%emt 0:00:24]} c6 {[%emt 0:02:39]} 9. Nbd2 {[%emt 0:01:59]} b6 {[%emt 0:03:13]} 10. e4 {[%emt 0:03:27]} Qc7 {[%emt 0:02:37]} 11. Re1 {[%emt 0:05:48]} Ba6 {[%emt 0:03:35]} 12. e5 $146 {[%emt 0:09:42]} ({Predecessor:} 12. Nc4 d5 13. exd5 cxd5 14. Ne3 e6 15. Rc1 Rac8 16. c4 dxc4 17. bxc4 Rfd8 18. Qb3 {1-0 Pomar Salamanca,A-Rossolimo,N Costa del Sol-13 1973}) 12... dxe5 {[%emt 0:01:39]} 13. Nxe5 {[%emt 0:00:04]} Nxe5 {[%emt 0:04:57]} 14. dxe5 {[%emt 0:00:05]} Nd7 {[%emt 0:00:20]} 15. Nf3 {[%emt 0:00:24]} Rad8 {[%emt 0:03:17]} 16. Qc1 {[%emt 0:00:11]} Nc5 {[%emt 0:10:20]} 17. h4 {[%emt 0:18:40]} Ne6 {[%emt 0:07:11]} 18. Ng5 {[%emt 0:14:22]} Bc8 {[%emt 0:01:40]} 19. Qe3 {[%emt 0:00:08]} Nxg5 {[%emt 0:04:10]} 20. hxg5 {[%emt 0:00:04]} Bf5 {[%emt 0:01:27]} 21. Bf3 {[%emt 0:06:52]} c5 {[%emt 0:03:27]} 22. Rac1 {[%emt 0:02:48]} Rd7 {[%emt 0:00:20]} 23. Kg2 {[%emt 0:01:06]} Rfd8 {[%emt 0:00:24]} 24. Bc3 {[%emt 0:07:11]} Be6 {[%emt 0:01:12]} 25. Rh1 {[%emt 0:02:16]} Bd5 {[%emt 0:06:02]} 26. Rh4 {[%emt 0:04:41]} Qc6 {[%emt 0:04:39]} 27. Rch1 {[%emt 0:02:09]} e6 {[%emt 0:02:19]} (27... Bxf3+ 28. Qxf3 Qxf3+ 29. Kxf3 $16) 28. Rxh7 {[%emt 0:06:03]} c4 {[%emt 0:00:48]} (28... Rc7 $16 {was necessary.}) 29. Bxd5 $1 $18 {[%emt 0:02:37]} Rxd5 {[%emt 0:02:32]} 30. Qf3 {[%emt 0:00:25]} Rc5 {[%emt 0:00:13]} 31. Qxc6 {[%emt 0:02:53]} Rxc6 {[%emt 0:00:02] [#]} 32. b4 $1 {[%emt 0:00:04]} Rd5 {[%emt 0:02:55]} (32... axb4 $142 33. Bxb4 Rd7) 33. bxa5 $18 {[%emt 0:00:25]} bxa5 {[%emt 0:00:31]} 34. R7h4 {[%emt 0:00:47]} Kf8 {[%emt 0:01:06]} 35. Re4 {[%emt 0:00:24]} Rcc5 {[%emt 0:01:07]} 36. f4 {[%emt 0:00:10]} Ke8 {[%emt 0:01:03]} 37. Rb1 {[%emt 0:00:21]} Bf8 {[%emt 0:00:17]} 38. Kf3 {[%emt 0:01:46]} Be7 {[%emt 0:01:44]} 39. Rb8+ {[%emt 0:00:20]} Rd8 {[%emt 0:00:48]} 40. Rb7 {[%emt 0:00:25]} Rd7 {[%emt 0:00:14]} 41. Rb5 $2 {[%emt 0:00:43]} (41. Rb6 $18 {has better winning chances.}) 41... Rdd5 {[%emt 0:00:51]} (41... Rxb5 $16 42. axb5 Bd8) 42. Rb1 {[%emt 0:00:38]} Bd8 {[%emt 0:02:07]} 43. Rd4 {[%emt 0:00:26]} Kd7 {[%emt 0:01:21]} 44. Rb7+ {[%emt 0:00:16]} Bc7 {[%emt 0:00:07]} 45. Ke4 {[%emt 0:00:34]} Kc8 {[%emt 0:03:15]} 46. Rb1 {[%emt 0:00:04]} Kd7 {[%emt 0:00:10]} 47. Rbd1 {[%emt 0:00:48]} Rxd4+ {[%emt 0:02:20]} 48. Bxd4 {[%emt 0:00:38]} Rd5 {[%emt 0:00:02]} 49. Rb1 {[%emt 0:00:34]} Kc6 {[%emt 0:00:02]} 50. g4 {[%emt 0:00:36]} Rd8 {[%emt 0:00:30] [#]} 51. Rb5 {[%emt 0:00:30]} (51. Rh1 $1 $18) 51... Rh8 {[%emt 0:01:36]} 52. Rc5+ {[%emt 0:00:08]} Kd7 {[%emt 0:00:03]} 53. Rxc4 {[%emt 0:00:13]} Rh4 {[%emt 0:00:15]} 54. Bf2 {[%emt 0:00:18]} Rh2 {[%emt 0:00:36]} 55. Bd4 {[%emt 0:01:01]} Rh4 $1 {[%emt 0:00:03]} 56. Kf3 {[%emt 0:00:41]} Rh3+ {[%emt 0:00:04]} 57. Kg2 {[%emt 0:00:12]} Ra3 {[%emt 0:00:05]} 58. Bc5 {[%emt 0:00:11]} Ra2 {[%emt 0:00:09]} 59. Kf3 {[%emt 0:00:06]} Ra1 {[%emt 0:00:22]} 60. Bd4 {[%emt 0:01:03]} Ra3+ {[%emt 0:00:07]} 61. Bc3 {[%emt 0:00:45]} Ra2 {[%emt 0:00:15]} 62. Be1 {[%emt 0:00:32]} Ra3+ {[%emt 0:00:17]} 63. Ke2 {[%emt 0:00:40]} Bb6 $2 {[%emt 0:01:02]} (63... Ra2 64. Bf2 Ra1) 64. Bc3 $18 {[%emt 0:00:11]} Bd8 {[%emt 0:02:39]} 65. Kd2 {[%emt 0:00:15]} Be7 {[%emt 0:00:45]} 66. Kc1 {[%emt 0:00:13]} Ke8 {[%emt 0:01:26]} 67. Kb2 {[%emt 0:00:13]} Kd7 {[%emt 0:00:06]} 68. Bxa5 {[%emt 0:00:36]} Rg3 {[%emt 0:00:03]} 69. Bc7 {[%emt 0:00:58]} Rxg4 {[%emt 0:00:11]} 70. a5 {[%emt 0:01:13]} Rg3 {[%emt 0:00:10]} 71. Bb6 {[%emt 0:00:34]} Ba3+ {[%emt 0:00:30]} 72. Ka2 {[%emt 0:00:11]} Bc1 {[%emt 0:00:31]} 73. Rc7+ {[%emt 0:00:22]} Ke8 {[%emt 0:00:06]} 74. Rc4 $2 {[%emt 0:00:44]} (74. Bc5 $18 {White threatens a6 and mate.} Kd8 75. Rc6 (75. Rxf7 Rc3 $18)) 74... Rf3 $2 {[%emt 0:00:50][%mdl 8192]} (74... Kd7 $11 75. Kb1 Bxf4 76. Rxf4 Kc6 77. Rxf7 Rxg5) 75. Ra4 {[%emt 0:00:17]} Rc3 {[%emt 0:01:39]} 76. Kb1 {[%emt 0:00:28]} Bd2 {[%emt 0:00:22]} 77. a6 {[%emt 0:00:17]} Rc8 {[%emt 0:00:02]} 78. a7 {[%emt 0:00:06]} Ra8 {[%emt 0:00:01]} 79. Rc4 {[%emt 0:00:06]} 1-0

[Event "21st Open Gran Hotel Bali-A 2024"]
[Site "Benidorm"]
[Date "2024.11.30"]
[Round "3.10"]
[White "Iglesias Ferreira, Andres"]
[Black "Stella, Andrea"]
[Result "1/2-1/2"]
[ECO "B96"]
[WhiteElo "2289"]
[BlackElo "2398"]
[Annotator "TA"]
[PlyCount "126"]
[EventDate "2024.11.26"]
[EventType "swiss"]
[EventCountry "ESP"]
[SourceTitle "playchess.com"]
[Source "ChessBase"]
[SourceQuality "1"]
[TimeControl "5400+30"]

{[%evp 14,126,32,22,50,36,35,37,37,34,40,31,36,11,7,18,16,13,12,0,13,0,35,43,32,0,0,0,0,0,0,0,0,0,8,0,14,3,4,-25,0,-121,-100,-125,-124,-124,-120,-103,0,-96,-100,-110,-95,-123,-127,-202,-197,-200,-198,-235,-227,-352,-295,-334,-352,-402,-228,-354,-285,-228,-397,-291,-8,-8,0,0,0,0,0,0,0,-1,-2,-7,-1,-8,-8,-8,-8,-8,-8,-8,-8,-8,-8,-8,-8,-8,-8,-8,-8,-8,-8,-8,-8,-8,-8,-8,-8,-8,-8,-8,0,-8,0]} 1. e4 {[%emt 0:00:02]} c5 {[%emt 0:06:09]} 2. Nf3 {[%emt 0:00:45]} d6 {[%emt 0:00:09]} 3. d4 {[%emt 0:00:10]} cxd4 {[%emt 0:00:03]} 4. Nxd4 {[%emt 0:00:13]} Nf6 {[%emt 0:00:04]} 5. Nc3 {[%emt 0:00:15]} a6 {[%emt 0:00:06]} 6. Bg5 {[%emt 0:01:19]} e6 {[%emt 0:00:08]} 7. f4 {[%emt 0:00:27]} h6 {[%emt 0:00:27]} 8. Bh4 {[%emt 0:00:31]} Nbd7 {[%emt 0:00:06]} 9. Qe2 {[%emt 0:05:11] Hoping for e5.} e5 $1 {[%emt 0:00:22]} 10. fxe5 {[%emt 0:04:26]} dxe5 {[%emt 0:00:18][%cal Og7g5] [#]} 11. O-O-O $1 {[%emt 0:08:26][%cal Ba1d1,Bd1d4,Bd4e4][%mdl 32]} exd4 {[%emt 0:00:19]} 12. e5 $1 {[%emt 0:00:19]} Be7 {[%emt 0:00:57]} (12... d3 $2 13. Rxd3 (13. exf6+ $2 dxe2 14. Bxe2 gxf6 $19) 13... Qe7 14. exf6 (14. Re3 Nxe5 $18) 14... Qxe2 15. Bxe2 Nxf6 16. Bxf6 gxf6 17. Nd5 $18) 13. Rxd4 {[%emt 0:07:17]} O-O {[%emt 0:00:11]} 14. exf6 {[%emt 0:00:07]} Bxf6 {[%emt 0:00:03]} 15. Bxf6 {[%emt 0:00:15]} Qxf6 {[%emt 0:00:04]} 16. Qe3 {[%emt 0:00:46]} Qe5 {[%emt 0:02:32]} 17. Re4 {[%emt 0:06:44]} Qc5 {[%emt 0:07:45]} 18. Qxc5 {[%emt 0:05:44]} Nxc5 {[%emt 0:00:04]} 19. Re7 {[%emt 0:00:48]} Be6 {[%emt 0:02:54]} 20. Rc7 {[%emt 0:02:45]} (20. b4 $5 Nd7 $8 21. Ne4 $17) 20... Rac8 {[%emt 0:05:42]} 21. Rxc8 {[%emt 0:00:11]} Rxc8 {[%emt 0:00:07]} 22. Be2 {[%emt 0:01:07]} Kf8 {[%emt 0:08:56]} 23. Rd1 {[%emt 0:00:26]} Ke7 {[%emt 0:01:38]} 24. Bf3 {[%emt 0:00:15]} b5 {[%emt 0:03:47]} 25. a3 {[%emt 0:02:58]} g5 {[%emt 0:02:48]} 26. Bd5 {[%emt 0:03:34]} Rd8 {[%emt 0:07:23]} 27. b4 {[%emt 0:02:51]} (27. Bf3 $11 {keeps the balance.}) 27... Na4 $17 {[%emt 0:01:08]} 28. Nxa4 {[%emt 0:08:43]} Bxd5 {[%emt 0:06:15][%mdl 4096] Endgame KRB-KRN} (28... Rxd5 29. Nc5) 29. Re1+ {[%emt 0:03:13]} Kf6 {[%emt 0:05:25]} 30. Rf1+ {[%emt 0:00:15]} Ke7 {[%emt 0:13:59]} 31. Re1+ {[%emt 0:00:57]} Kd6 $1 {[%emt 0:12:44]} 32. Nc5 {[%emt 0:00:45]} Bxg2 {[%emt 0:00:11]} 33. Rd1+ {[%emt 0:00:41]} Ke7 $1 {[%emt 0:00:08]} 34. Re1+ {[%emt 0:01:22]} (34. Rxd8 $17 {was necessary.} Kxd8 35. Nxa6) 34... Kf6 $19 {[%emt 0:00:51]} 35. Nxa6 {[%emt 0:00:15][%cal Oc2c4] [#]} h5 $1 {[%emt 0:01:32]} 36. Nc5 {[%emt 0:00:56][%cal Oc2c4]} g4 {[%emt 0:03:53]} 37. c4 {[%emt 0:01:19]} (37. Nd3 $142) 37... bxc4 {[%emt 0:01:07]} 38. a4 {[%emt 0:01:16]} h4 {[%emt 0:01:41]} 39. a5 {[%emt 0:00:13]} h3 {[%emt 0:01:59]} (39... Kf5 $142 40. Kc2 g3 41. hxg3 h3 (41... hxg3 42. Rg1 $14)) 40. Re3 {[%emt 0:00:29]} (40. Ne4+ {is the only way for White.} Kg6 41. Nf2) 40... Rg8 {[%emt 0:02:02][%cal Og4g3]} 41. Ne4+ {[%emt 0:01:33]} Bxe4 $2 {[%emt 0:01:27]} (41... Ke5 42. Ng3+ Kf6 (42... Kf4 43. Re7 $15) 43. Kc2 $11) (41... Kg6 42. Nf2 Rb8 43. Nxg4 Rxb4) 42. Rxe4 {[%emt 0:00:02][%cal Oc1c2] [#] KR-KR. Black is a pawn up.} g3 $2 {[%emt 0:03:17]} ({Black should play} 42... Kg5 $1 $19 {White must now prevent ...f5.} 43. b5 f5 (43... c3 44. a6 $16) 44. Rxc4 f4) 43. hxg3 $11 {[%emt 0:00:06]} Rh8 {[%emt 0:00:02]} 44. Re1 {[%emt 0:00:41]} (44. Rxc4 $2 {too greedy.} h2 45. Rf4+ Ke6 46. Re4+ Kd5 $19) 44... Rb8 {[%emt 0:00:10][%cal Of6g5]} 45. Rh1 {[%emt 0:00:25]} Rxb4 {[%emt 0:00:19]} 46. Rxh3 {[%emt 0:00:07]} Ra4 {[%emt 0:01:17]} 47. Rh4 {[%emt 0:00:26]} Rxa5 {[%emt 0:00:26]} 48. Rxc4 {[%emt 0:00:07]} Rd5 {[%emt 0:00:22]} 49. Kc2 {[%emt 0:00:28]} Kg5 {[%emt 0:00:11]} 50. Kc3 $1 {[%emt 0:00:16]} Rd1 {[%emt 0:00:41]} 51. Rd4 {[%emt 0:00:43]} Rg1 {[%emt 0:00:18]} 52. Kd3 {[%emt 0:00:17]} Rxg3+ {[%emt 0:00:05]} 53. Ke2 {[%emt 0:00:04]} Rg4 {[%emt 0:00:37]} 54. Rd5+ {[%emt 0:00:13]} f5 {[%emt 0:00:05]} 55. Kf3 {[%emt 0:00:42]} Rf4+ {[%emt 0:00:05]} 56. Kg3 {[%emt 0:00:08]} Rc4 {[%emt 0:00:27]} 57. Rd3 $1 {[%emt 0:00:35]} Kf6 {[%emt 0:00:07]} 58. Ra3 {[%emt 0:00:22]} Rd4 {[%emt 0:00:14]} 59. Rb3 {[%emt 0:00:29]} Ke5 {[%emt 0:00:14]} 60. Kf3 $1 {[%emt 0:00:10]} Rf4+ {[%emt 0:00:12]} 61. Ke3 {[%emt 0:00:11]} Re4+ {[%emt 0:00:02]} 62. Kf3 {[%emt 0:00:07]} Rf4+ {[%emt 0:00:02]} 63. Ke3 $1 {[%emt 0:00:06] Intending Rb5+ and mate.} Re4+ {[%emt 0:00:01]} 1/2-1/2

[Event "21st Open Gran Hotel Bali-A 2024"]
[Site "Benidorm"]
[Date "2024.11.30"]
[Round "3.11"]
[White "Rey Martinez, Jaime"]
[Black "Trigo Urquijo, Sergio"]
[Result "1-0"]
[ECO "B12"]
[WhiteElo "2266"]
[BlackElo "2370"]
[Annotator "TA"]
[PlyCount "85"]
[EventDate "2024.11.26"]
[EventType "swiss"]
[EventCountry "ESP"]
[SourceTitle "playchess.com"]
[Source "ChessBase"]
[SourceQuality "1"]
[TimeControl "5400+30"]

{[%evp 9,85,20,26,16,32,23,87,55,81,22,49,0,73,25,79,81,82,67,85,83,83,70,91,71,98,100,101,103,108,100,96,113,125,90,117,126,131,150,136,122,156,61,98,102,133,160,155,128,163,165,172,166,170,160,156,163,168,163,610,247,754,287,291,277,283,273,420,420,697,520,688,688,648,603,586,586,29994,29995]} 1. e4 {[%emt 0:01:30]} c6 {[%emt 0:00:34]} 2. d4 {[%emt 0:01:15]} d5 {[%emt 0:00:22]} 3. e5 {[%emt 0:00:28]} Bf5 {[%emt 0:01:12]} 4. h4 {[%emt 0:01:53]} a6 {[%emt 0:02:03]} 5. h5 {[%emt 0:03:15]} c5 {[%emt 0:02:30]} 6. dxc5 {[%emt 0:02:31]} Qc7 {[%emt 0:02:12]} 7. Nf3 {[%emt 0:05:11]} Qxc5 {[%emt 0:12:14]} (7... e6 $11 {keeps the balance.}) 8. c3 {[%emt 0:07:11]} Nd7 {[%emt 0:17:12]} 9. Bf4 {[%emt 0:05:00]} (9. Be3 $16 Qc8 10. Qxd5) 9... Qb6 {[%emt 0:06:51]} 10. Nbd2 {[%emt 0:18:47]} (10. Qxd5 $2 Qxb2 11. Bc4 e6 $19 (11... Qxa1 $2 12. Qxf7+ Kd8 13. Qxf5 $18)) (10. Qb3 $1 $14) 10... Bg4 {[%emt 0:05:56]} (10... Qxb2 $11 11. Nd4 g5 12. hxg6 (12. Bxg5 Bh6 $11) 12... Bxg6) 11. Qc2 {[%emt 0:07:36]} (11. Qb3 $1 $16) 11... Bxf3 {[%emt 0:02:15]} (11... e6 $11) 12. Nxf3 $16 {[%emt 0:00:05]} e6 {[%emt 0:00:20]} 13. Bd3 {[%emt 0:02:47]} h6 {[%emt 0:00:47]} 14. O-O {[%emt 0:01:24]} Ne7 {[%emt 0:01:40]} 15. b4 {[%emt 0:04:34]} Nc6 {[%emt 0:00:26]} 16. a3 {[%emt 0:03:46]} Be7 {[%emt 0:06:20]} 17. c4 {[%emt 0:08:15]} Nd4 {[%emt 0:03:33]} 18. Qd1 {[%emt 0:03:10]} dxc4 {[%emt 0:07:30]} 19. Bxc4 {[%emt 0:00:26]} Nxf3+ {[%emt 0:01:21]} 20. Qxf3 {[%emt 0:00:04]} O-O {[%emt 0:00:42]} 21. Bd3 {[%emt 0:02:23] Hoping for Qe4.} Rfd8 {[%emt 0:00:46][%cal Bf8d8,Bd8d5,Bd5b5][%mdl 32]} 22. Qe4 {[%emt 0:03:09] Repels Qd4} Nf8 {[%emt 0:01:09] Prevents Qh7+} 23. Be3 {[%emt 0:01:00]} Qc7 {[%emt 0:00:17]} 24. Rac1 {[%emt 0:01:08]} Qd7 {[%emt 0:00:48]} 25. Rcd1 {[%emt 0:00:51]} ({White should try} 25. Rfd1 $16) 25... Qd5 {[%emt 0:03:22]} 26. Qxd5 {[%emt 0:02:06]} Rxd5 {[%emt 0:00:34]} 27. Be4 {[%emt 0:00:26] A strong pair of Bishops.} Rb5 {[%emt 0:00:17][%cal Oa6a5] [#]} 28. Rc1 $1 {[%emt 0:03:12] Black is weak on the dark squares} a5 {[%emt 0:01:16]} 29. Rc7 $1 {[%emt 0:03:15][%csl LRb7,LRe7]} Bd8 {[%emt 0:01:11]} 30. Rc5 {[%emt 0:01:51]} (30. Bxb7 $2 Rb8 (30... Bxc7 31. Bxa8 axb4 32. Bc6 $16) 31. Rc8 R5xb7 $19 (31... R8xb7 $2 32. Rxd8 axb4 33. axb4 $18)) 30... Rb6 {[%emt 0:05:00]} 31. Rc2 {[%emt 0:04:58]} (31. bxa5 Rb3 $16) (31. Rxa5 Rxa5 32. bxa5 Rb5 $16) 31... Rb5 {[%emt 0:07:58] [#]} 32. Bc5 $1 $36 {[%emt 0:00:03][%mdl 2048] White has strong initiative. White is much more active. The black rooks are passive.} axb4 {[%emt 0:00:44]} 33. axb4 {[%emt 0:00:13]} (33. Bxb4 g5 $16) 33... Ra3 $2 {[%emt 0:00:44]} (33... Nd7) 34. Rd1 {[%emt 0:01:54]} (34. Bd6 $142) 34... Bb6 $2 {[%emt 0:00:05]} (34... Ra8 35. Bd3 Rb6) 35. Bd3 $2 {[%emt 0:00:37]} ({Weaker is} 35. Bxb7 Bxc5 36. bxc5 (36. Bc6 Bxf2+ 37. Kxf2 Rxb4 $17) 36... Rxb7 $19) (35. Bxb6 Rxe5 36. Bf3 (36. Bxb7 Rb5 $18)) 35... Bxc5 $18 {[%emt 0:00:08]} 36. Bxb5 {[%emt 0:00:04]} Bxb4 {[%emt 0:00:06]} 37. Rc7 {[%emt 0:01:04]} b6 {[%emt 0:03:52]} (37... Ra8 {might work better.} 38. g3 (38. Rxb7 Bc5 $18) 38... Ba5) 38. Be8 {[%emt 0:00:10]} f6 {[%emt 0:00:44]} (38... g5 $142 39. Bxf7+ Kh8) 39. Bf7+ {[%emt 0:00:19]} Kh8 {[%emt 0:00:11]} 40. Rd8 {[%emt 0:01:18] White wants to mate with Rcc8.} fxe5 {[%emt 0:00:48]} 41. Bxe6 {[%emt 0:00:54]} Kh7 {[%emt 0:00:41] [#]} 42. Rcc8 $1 {[%emt 0:00:53]} g6 {[%emt 0:01:17]} (42... Ra7 43. Rxf8) 43. Rc7+ {[%emt 0:00:28]} 1-0

[Event "21st Open Gran Hotel Bali-A 2024"]
[Site "Benidorm"]
[Date "2024.11.30"]
[Round "3.12"]
[White "Prado Lobo, Jonas"]
[Black "Van Zyl-Rudd, Jack"]
[Result "1/2-1/2"]
[ECO "D46"]
[WhiteElo "2360"]
[BlackElo "2268"]
[Annotator "TA"]
[PlyCount "49"]
[EventDate "2024.11.26"]
[EventType "swiss"]
[EventCountry "ESP"]
[SourceTitle "playchess.com"]
[Source "ChessBase"]
[SourceQuality "1"]
[TimeControl "5400+30"]

{[%evp 19,49,0,19,0,10,12,8,12,2,11,4,8,11,0,14,0,10,0,0,0,0,0,0,-17,-17,-12,-28,-23,-11,-34,-45,-42]} 1. Nf3 {[%emt 0:00:02]} d5 {[%emt 0:04:34]} 2. d4 {[%emt 0:00:09]} Nf6 {[%emt 0:00:42]} 3. c4 {[%emt 0:00:06]} e6 {[%emt 0:00:42]} 4. Nc3 {[%emt 0:00:06]} c6 {[%emt 0:00:18]} 5. e3 {[%emt 0:00:09]} Nbd7 {[%emt 0:00:04]} 6. Qc2 {[%emt 0:00:12]} Bd6 {[%emt 0:00:06]} 7. Bd3 {[%emt 0:00:13]} dxc4 {[%emt 0:00:06]} 8. Bxc4 {[%emt 0:00:07]} O-O {[%emt 0:00:05]} 9. O-O {[%emt 0:00:13]} a6 {[%emt 0:00:04]} 10. Rd1 {[%emt 0:02:21]} c5 {[%emt 0:00:57]} 11. Be2 {[%emt 0:13:03]} Qc7 {[%emt 0:17:48]} 12. dxc5 {[%emt 0:11:28]} Bxc5 {[%emt 0:02:47]} 13. Ne4 {[%emt 0:14:42]} Nxe4 {[%emt 0:04:14]} 14. Qxe4 {[%emt 0:00:02]} Nf6 {[%emt 0:04:17]} 15. Qe5 {[%emt 0:01:43]} Qe7 {[%emt 0:01:35]} 16. a3 {[%emt 0:13:24]} Bd7 {[%emt 0:09:55]} 17. b4 {[%emt 0:02:10]} Bb6 {[%emt 0:03:32]} 18. Bb2 {[%emt 0:02:13]} Ba4 {[%emt 0:01:04]} 19. Rdc1 {[%emt 0:02:34]} Rac8 {[%emt 0:07:06]} 20. Nd4 {[%emt 0:01:33] Black must now prevent Nf5.} Qd7 {[%emt 0:21:54]} 21. Bf3 {[%emt 0:02:34]} Bc7 {[%emt 0:02:52]} 22. Qg5 {[%emt 0:02:21][%cal Od4f5] White threatens Nf5! and mate.} h6 {[%emt 0:00:58]} 23. Qh4 {[%emt 0:02:40]} Be5 {[%emt 0:01:07]} 24. Rc5 {[%emt 0:10:49]} Bd6 {[%emt 0:05:32]} 25. Rxc8 {[%emt 0:18:06]} 1/2-1/2